fUST/lending_fUST_20241218
["ID","MTS","AMOUNT","RATE_DAILY","PERIOD"]
[345832811,1734499846431,-1000.0,0.00024462,2]
[345832812,1734499846441,-1000.0,0.0002448,2]
[345832813,1734499846450,-1000.0,0.00024495,2]
[345832814,1734499846460,-1481.27,0.000245,2]
[345832815,1734499846469,-328.0,0.000245,11]
[345832816,1734499846479,-1000.0,0.00024526,2]
[345832817,1734499846488,-1000.0,0.00024544,2]
[345832818,1734499846498,-1000.0,0.00024548,2]
[345832819,1734499846507,-691.74408917,0.00024556,2]
[345832820,1734499846517,-1000.0,0.0002458,2]
[345832821,1734499846526,-1000.0,0.00024593,2]
[345832822,1734499846536,-1000.0,0.00024625,2]
[345832823,1734499846547,-1000.0,0.00024633,2]
[345832824,1734499846556,-393.56435589,0.00024639,2]
[345832825,1734499846566,-189.22176977,0.00024656,2]
[345832826,1734499846575,-500.0,0.00024657,6]
[345832827,1734499846585,-500.0,0.00024657,6]
[345832828,1734499846595,-500.0,0.00024657,6]
[345832829,1734499846608,-500.0,0.00024657,6]
[345832830,1734499846617,-500.0,0.00024657,6]
[345832831,1734499846627,-500.0,0.00024657,6]
[345832832,1734499846637,-500.0,0.00024657,6]
[345832833,1734499846647,-500.0,0.00024657,6]
[345832834,1734499846656,-500.0,0.00024657,6]
[345832835,1734499846666,-500.0,0.00024657,6]
[345832836,1734499846676,-500.0,0.00024657,6]
[345832837,1734499846686,-500.0,0.00024657,6]
[345832838,1734499846695,-500.0,0.00024657,6]
[345832839,1734499846705,-206.17513855,0.00024657,6]
[345832840,1734499846715,-500.0,0.00024657,6]
[345832841,1734499846724,-500.0,0.00024657,6]
[345832842,1734499846734,-500.0,0.00024657,6]
[345832843,1734499846744,-500.0,0.00024657,6]
[345832844,1734499846753,-500.0,0.00024657,6]
[345832845,1734499846763,-500.0,0.00024657,6]
[345832846,1734499846772,-500.0,0.00024657,6]
[345832847,1734499846781,-500.0,0.00024657,6]
[345832848,1734499846792,-500.0,0.00024657,6]
[345832849,1734499846801,-500.0,0.00024657,6]
[345832850,1734499846811,-500.0,0.00024657,6]
[345832851,1734499846820,-500.0,0.00024657,6]
[345832852,1734499846829,-500.0,0.00024657,6]
[345832853,1734499846838,-500.0,0.00024657,6]
[345832854,1734499846848,-500.0,0.00024657,6]
[345832855,1734499846857,-500.0,0.00024657,6]
[345832856,1734499846866,-151.0,0.00024657,7]
[345832857,1734499846875,-522.72,0.00024657,6]
[345832858,1734499846885,-500.0,0.00024657,6]
[345832859,1734499846894,-500.0,0.00024657,6]
[345832860,1734499846903,-555.86,0.00024657,6]
[345832861,1734499846913,-500.0,0.00024657,6]
[345832862,1734499846922,-500.0,0.00024657,6]
[345832863,1734499846931,-500.0,0.00024657,6]
[345832864,1734499846941,-500.0,0.00024657,6]
[345832865,1734499846950,-528.31,0.00024657,6]
[345832866,1734499846959,-619.94,0.00024657,6]
[345832867,1734499846969,-500.0,0.00024657,6]
[345832868,1734499846978,-500.0,0.00024657,6]
[345832869,1734499846987,-767.05,0.00024657,6]
[345832870,1734499846997,-500.0,0.00024657,6]
[345832871,1734499847006,-500.0,0.00024657,6]
[345832872,1734499847015,-500.0,0.00024657,6]
[345832873,1734499847025,-500.0,0.00024657,6]
[345832874,1734499847035,-500.0,0.00024657,6]
[345832875,1734499847053,-500.0,0.00024657,6]
[345832876,1734499847062,-500.0,0.00024657,6]
[345832877,1734499847071,-659.81,0.00024657,6]
[345832878,1734499847081,-500.0,0.00024657,6]
[345832879,1734499847090,-500.0,0.00024657,6]
[345832880,1734499847099,-500.0,0.00024657,6]
[345832881,1734499847109,-168.0,0.00024657,6]
[345832882,1734499847118,-500.0,0.00024657,6]
[345832883,1734499847127,-500.0,0.00024657,6]
[345832884,1734499847136,-472.17839085,0.00024657,6]
[345832885,1734499847145,-500.0,0.00024657,6]
[345832886,1734499847155,-487.21506873,0.00024657,6]
[345832887,1734499847164,-1440.53,0.00024657,6]
[345832888,1734499847173,-733.39,0.00024657,2]
[345832889,1734499847182,-500.0,0.00024657,6]
[345832890,1734499847195,-2247.39,0.00024657,6]
[345832891,1734499847204,-512.23714399,0.00024657,6]
[345832892,1734499847214,-529.62,0.00024657,6]
[345832893,1734499847223,-500.0,0.00024657,6]
[345832894,1734499847232,-500.0,0.00024657,6]
[345832895,1734499847241,-1166.51,0.00024657,6]
[345832896,1734499847250,-500.0,0.00024657,6]
[345832897,1734499847260,-500.0,0.00024657,6]
[345832898,1734499847269,-500.0,0.00024657,6]
[345832899,1734499847278,-1080.99,0.00024657,6]
[345832900,1734499847287,-2491.33,0.00024657,2]
[345832901,1734499847296,-500.0,0.00024657,6]
[345832902,1734499847306,-500.0,0.00024657,6]
[345832903,1734499847315,-2340.8,0.00024657,6]
[345832904,1734499847325,-585.69,0.00024657,6]
[345832905,1734499847334,-500.0,0.00024657,6]
[345832906,1734499847343,-600.34328064,0.00024657,6]
[345832907,1734499847353,-151.0,0.00024657,7]
[345832908,1734499847363,-151.0,0.00024657,7]
[345832909,1734499847372,-151.0,0.00024657,7]
[345832910,1734499847382,-151.0,0.00024657,7]
[345832911,1734499847391,-151.0,0.00024657,7]
[345832912,1734499847400,-151.0,0.00024657,7]
[345832913,1734499847410,-963.92,0.00024657,6]
[345832914,1734499847420,-500.0,0.00024657,6]
[345832915,1734499847430,-151.0,0.00024657,7]
[345832916,1734499847439,-151.0,0.00024657,7]
[345832917,1734499847449,-151.0,0.00024657,7]
[345832918,1734499847459,-500.0,0.00024657,6]
[345832919,1734499847468,-151.0,0.00024657,7]
[345832920,1734499847478,-202.17202303,0.00024657,7]
[345832921,1734499847487,-500.0,0.00024657,6]
[345832922,1734499847497,-500.0,0.00024657,6]
[345832923,1734499847508,-500.0,0.00024657,6]
[345832924,1734499847517,-500.0,0.00024657,6]
[345832925,1734499847528,-500.0,0.00024657,6]
[345832926,1734499847541,-500.0,0.00024657,6]
[345832927,1734499847550,-500.0,0.00024657,6]
[345832928,1734499847560,-500.0,0.00024657,6]
[345832929,1734499847569,-861.34,0.00024657,6]
[345832930,1734499847579,-1386.12,0.00024657,6]
[345832931,1734499847589,-500.0,0.00024657,6]
[345832932,1734499847601,-500.0,0.00024657,2]
[345832933,1734499847610,-500.0,0.00024657,6]
[345832934,1734499847620,-500.0,0.00024657,6]
[345832935,1734499847629,-500.0,0.00024657,6]
[345832936,1734499847639,-500.0,0.00024657,6]
[345832937,1734499847650,-500.0,0.00024657,6]
[345832938,1734499847660,-1006.21,0.00024657,2]
[345832939,1734499847670,-500.0,0.00024657,6]
[345832940,1734499847681,-509.34965467,0.00024657,6]
[345832941,1734499847691,-1111.86,0.00024657,6]
[345832942,1734499847701,-652.55,0.00024657,6]
[345832943,1734499847711,-500.0,0.00024657,6]
[345832944,1734499847721,-500.0,0.00024657,6]
[345832945,1734499847731,-500.0,0.00024657,6]
[345832946,1734499847740,-500.0,0.00024657,6]
[345832947,1734499847750,-614.98,0.00024657,6]
[345832948,1734499847761,-235.49658683,0.00024657,6]
[345832949,1734499847771,-500.0,0.00024657,6]
[345832950,1734499847781,-500.0,0.00024657,6]
[345832951,1734499847792,-500.0,0.00024657,6]
[345832952,1734499847801,-500.0,0.00024657,6]
[345832953,1734499847811,-500.0,0.00024657,6]
[345832954,1734499847821,-7766.52,0.00024657,6]
[345832955,1734499847832,-4580.3,0.00024657,6]
[345832956,1734499847841,-500.0,0.00024657,6]
[345832957,1734499847851,-525.78,0.00024657,6]
[345832958,1734499847860,-270.31305682,0.00024657,6]
[345832959,1734499847871,-500.0,0.00024657,6]
[345832960,1734499847880,-500.0,0.00024657,6]
[345832961,1734499847890,-500.0,0.00024657,6]
[345832962,1734499847900,-649.25479481,0.00024657,6]
[345832963,1734499847909,-500.0,0.00024657,6]
[345832964,1734499847919,-500.0,0.00024657,6]
[345832965,1734499847929,-4911.31,0.00024657,6]
[345832966,1734499847939,-4470.58,0.00024657,6]
[345832967,1734499847949,-500.0,0.00024657,6]
[345832968,1734499847958,-500.0,0.00024657,6]
[345832969,1734499847969,-500.0,0.00024657,6]
[345832970,1734499847978,-500.0,0.00024657,6]
[345832971,1734499847988,-500.0,0.00024657,6]
[345832972,1734499847998,-500.0,0.00024657,6]
[345832973,1734499848007,-975.53,0.00024657,6]
[345832974,1734499848016,-500.0,0.00024657,6]
[345832975,1734499848026,-500.0,0.00024657,6]
[345832976,1734499848036,-5757.17,0.00024657,6]
[345832977,1734499848047,-650.21,0.00024657,6]
[345832978,1734499848057,-574.69,0.00024657,6]
[345832979,1734499848067,-500.0,0.00024657,6]
[345832980,1734499848077,-718.08,0.00024657,6]
[345832981,1734499848087,-500.0,0.00024657,6]
[345832982,1734499848096,-500.0,0.00024657,6]
[345832983,1734499848106,-522.84260659,0.00024657,6]
[345832984,1734499848116,-500.0,0.00024657,6]
[345832985,1734499848125,-500.0,0.00024657,6]
[345832986,1734499848135,-599.4,0.00024657,6]
[345832987,1734499848144,-500.0,0.00024657,6]
[345832988,1734499848154,-500.0,0.00024657,6]
[345832989,1734499848163,-500.0,0.00024657,6]
[345832990,1734499848173,-500.0,0.00024657,6]
[345832991,1734499848183,-4713.03,0.00024657,6]
[345832992,1734499848193,-500.0,0.00024657,6]
[345832993,1734499848202,-683.5,0.00024657,6]
[345832994,1734499848211,-646.57,0.00024657,6]
[345832995,1734499848221,-500.0,0.00024657,6]
[345832996,1734499848230,-500.0,0.00024657,6]
[345832997,1734499848240,-500.0,0.00024657,6]
[345832998,1734499848249,-500.0,0.00024657,6]
[345832999,1734499848258,-500.0,0.00024657,6]
[345833000,1734499848268,-522.81,0.00024657,2]
[345833001,1734499848278,-500.0,0.00024657,6]
[345833002,1734499848288,-500.0,0.00024657,6]
[345833003,1734499848299,-209.87771811,0.00024657,6]
[345833004,1734499848309,-500.0,0.00024657,6]
[345833005,1734499848319,-500.0,0.00024657,6]
[345833006,1734499848329,-4570.32,0.00024657,6]
[345833007,1734499848339,-500.0,0.00024657,6]
[345833008,1734499848348,-782.68,0.00024657,6]
[345833009,1734499848358,-500.0,0.00024657,6]
[345833010,1734499848368,-500.0,0.00024657,6]
[345833011,1734499848378,-122.2149898,0.00024657,6]
[345833016,1734500144749,292.890162,0.00013973,2]
[345833017,1734500174809,4300.0,0.0002556,120]
[345833069,1734501032699,-292.890162,0.00020447,2]
[345833070,1734501032709,-171.175589,0.00022636,2]
[345833071,1734501032718,-159.108249,0.0002343,2]
[345833072,1734501032773,-222.640751,0.0002343,2]
[345833073,1734501032783,-150.371,0.00024035,2]
[345833074,1734501032792,-188.39,0.00024035,2]
[345833075,1734501032802,-902.6138828,0.0002439,2]
[345833101,1734501039134,-97.3861172,0.0002439,2]
[345833103,1734501039144,-1000.0,0.00024408,2]
[345833105,1734501039153,-1000.0,0.00024415,2]
[345833107,1734501039170,-493.7078828,0.00024423,2]
[345833147,1734501039729,-506.2921172,0.00024423,2]
[345833149,1734501039743,-262.48788279,0.00024423,2]
[345833152,1734501039756,-429.25620638,0.00024423,2]
[345833154,1734501039765,-827.64379362,0.00024454,2]
[345833268,1734501040734,-172.35620638,0.00024454,2]
[345833270,1734501040744,-138.82436257,0.00024456,2]
[345833616,1734501043680,-150.122,0.00024035,2]
[345833618,1734501043691,-861.17563743,0.00024456,2]
[345833620,1734501043701,-1000.0,0.00024465,2]
[345833622,1734501043710,-1000.0,0.0002447,2]
[345833624,1734501043719,-1333.14,0.000245,2]
[345833626,1734501043730,-312.0,0.000245,11]
[345833628,1734501043739,-2000.0,0.000245,2]
[345833630,1734501043749,-1000.0,0.00024511,2]
[345833632,1734501043758,-300.0,0.00024599,2]
[345833634,1734501043768,-300.0,0.00024599,2]
[345833636,1734501043777,-1023.6,0.000246,2]
[345833638,1734501043787,-48514.75176,0.000246,2]
[345833640,1734501043796,-1000.0,0.00024601,2]
[345833642,1734501043806,-3628.56,0.00024656,2]
[345833644,1734501043815,-189.22176977,0.00024656,2]
[345833646,1734501043825,-502.3362861,0.00024657,6]
[345833648,1734501043834,-296.70134851,0.00024657,6]
[345833650,1734501043844,-504.16278896,0.00024657,6]
[345833652,1734501043853,-500.0,0.00024657,6]
[345833654,1734501043863,-500.0,0.00024657,6]
[345833656,1734501043872,-500.0,0.00024657,6]
[345833658,1734501043881,-500.0,0.00024657,6]
[345833660,1734501043890,-500.0,0.00024657,6]
[345833662,1734501043899,-636.30712868,0.00024657,6]
[345833664,1734501043910,-500.0,0.00024657,6]
[345833666,1734501043925,-500.0,0.00024657,6]
[345833667,1734501043935,-363.34260681,0.00024657,6]
[345833669,1734501043944,-500.0,0.00024657,6]
[345833671,1734501043954,-354.83748509,0.00024657,6]
[345833673,1734501043971,-500.0,0.00024657,6]
[345833675,1734501043981,-584.13396999,0.00024657,6]
[345833677,1734501043990,-500.0,0.00024657,6]
[345833679,1734501044001,-500.0,0.00024657,6]
[345833682,1734501044013,-964.29,0.00024657,2]
[345833683,1734501044023,-500.0,0.00024657,6]
[345833686,1734501044033,-501.3626067,0.00024657,6]
[345833688,1734501044042,-500.0,0.00024657,6]
[345833690,1734501044052,-527.08064066,0.00024657,6]
[345833692,1734501044061,-500.0,0.00024657,6]
[345833693,1734501044071,-531.74676739,0.00024657,6]
[345833695,1734501044080,-500.0,0.00024657,6]
[345833697,1734501044090,-500.0,0.00024657,6]
[345833700,1734501044101,-500.0,0.00024657,6]
[345833702,1734501044111,-500.94,0.00024657,6]
[345833704,1734501044121,-500.0,0.00024657,6]
[345833706,1734501044130,-508.58287575,0.00024657,6]
[345833708,1734501044140,-216.65005985,0.00024657,6]
[345833710,1734501044149,-532.7,0.00024657,6]
[345833712,1734501044162,-506.3,0.00024657,6]
[345833714,1734501044172,-544.75581202,0.00024657,6]
[345833715,1734501044182,-594.11,0.00024657,6]
[345833717,1734501044191,-500.0,0.00024657,6]
[345833720,1734501044201,-503.88,0.00024657,6]
[345833722,1734501044211,-735.09,0.00024657,6]
[345833724,1734501044221,-500.0,0.00024657,6]
[345833726,1734501044230,-500.0,0.00024657,6]
[345833728,1734501044239,-500.0,0.00024657,6]
[345833730,1734501044252,-500.0,0.00024657,6]
[345833732,1734501044261,-500.0,0.00024657,6]
[345833734,1734501044271,-500.0,0.00024657,6]
[345833736,1734501044281,-500.0,0.00024657,6]
[345833738,1734501044290,-1015.63059741,0.00024657,7]
[345833740,1734501044300,-500.0,0.00024657,6]
[345833742,1734501044310,-500.0,0.00024657,6]
[345833744,1734501044319,-500.0,0.00024657,6]
[345833746,1734501044328,-500.0,0.00024657,6]
[345833748,1734501044338,-500.0,0.00024657,6]
[345833750,1734501044347,-632.32,0.00024657,6]
[345833752,1734501044357,-500.0,0.00024657,6]
[345833754,1734501044367,-168.0,0.00024657,6]
[345833756,1734501044376,-500.0,0.00024657,6]
[345833758,1734501044386,-500.0,0.00024657,6]
[345833760,1734501044395,-500.0,0.00024657,6]
[345833762,1734501044405,-702.83,0.00024657,2]
[345833764,1734501044424,-1380.51,0.00024657,6]
[345833766,1734501044434,-500.0,0.00024657,6]
[345833768,1734501044443,-500.0,0.00024657,6]
[345833770,1734501044452,-500.0,0.00024657,6]
[345833772,1734501044462,-500.0,0.00024657,6]
[345833774,1734501044471,-2153.75,0.00024657,6]
[345833776,1734501044481,-285.00046668,0.00024657,6]
[345833778,1734501044490,-500.0,0.00024657,6]
[345833780,1734501044499,-507.55,0.00024657,6]
[345833782,1734501044508,-228.23623091,0.00024657,6]
[345833784,1734501044518,-573.3,0.00024657,6]
[345833786,1734501044527,-500.0,0.00024657,6]
[345833788,1734501044537,-1117.91,0.00024657,6]
[345833790,1734501044546,-108.87446876,0.00024657,6]
[345833964,1734501046602,-448.46349099,0.00024657,6]
[345833966,1734501046612,-1035.95,0.00024657,6]
[345833968,1734501046622,-500.0,0.00024657,6]
[345833970,1734501046631,-919.97385221,0.00024657,2]
[345833972,1734501046643,-1467.55614779,0.00024657,2]
[345833974,1734501046652,-459.84385222,0.00024657,6]
[345833976,1734501046669,-101.44614778,0.00024657,6]
[345833978,1734501046679,-500.0,0.00024657,6]
[345833980,1734501046688,-331.21497287,0.00024657,6]
[345834277,1734501049667,13184.60251374,0.000255,120]
[345834281,1734501049697,50000.0,0.000255,120]
[345834286,1734501049735,149225.29548626,0.000255,120]
[345834664,1734501153634,1700.0,0.00022,30]
[345834666,1734501287845,274.300969,0.00013973,2]
[345834739,1734502233055,-274.300969,0.00020447,2]
[345834741,1734502233065,-365.695,0.0002343,2]
[345834743,1734502233075,-300.0,0.00023994,2]
[345834745,1734502233085,-300.0,0.00023994,2]
[345834747,1734502233094,-4266.16469747,0.00023995,2]
[345834749,1734502233106,-491.09079943,0.00023995,2]
[345834787,1734502239343,-797.45686413,0.00023995,2]
[345834847,1734502240005,-4813.44023882,0.00023995,2]
[345834929,1734502240940,-670.61563142,0.00023995,2]
[345835251,1734502640820,257.185665,0.00013973,2]
[345835257,1734503213174,198.74880277,0.0002,2]
[345835334,1734503432024,-355.93110724,0.00020159,2]
[345835336,1734503432034,-154.05749156,0.00020447,2]
[345835735,1734503512753,245.391081,0.00013973,2]
[345835737,1734503883548,195384.71051145,0.000255,120]
[345835740,1734504523941,2009.0,0.0001888,10]
[345835799,1734504632185,-245.391081,0.00020447,2]
[345835801,1734504632195,-350.685,0.0002343,2]
[345835803,1734504632204,-300.0,0.00023999,2]
[345835805,1734504632214,-85.732919,0.00023999,2]
[345835820,1734504632348,-214.267081,0.00023999,2]
[345835823,1734504632358,-1111.41791898,0.00024,3]
[345836305,1734504638814,-985.95270778,0.00024,3]
[345836306,1734504638825,-1075.0,0.00024,3]
[345836307,1734504638864,-1078.107955,0.00024,3]
[345836349,1734504640223,-8315.859014,0.00024,3]
[345836724,1734504643330,-2114.45828166,0.00024,3]
[345836732,1734504643399,-5824.14690112,0.00024,3]
[345836734,1734504643408,-1325.68499998,0.00024,3]
[345836736,1734504643418,-1325.68499998,0.00024,3]
[345836738,1734504643428,-5833.36388634,0.00024267,7]
[345836740,1734504643437,-344.36881143,0.00024267,2]
[345836742,1734504643447,-151.0,0.00024464,7]
[345836744,1734504643456,-500.0,0.00024464,2]
[345836746,1734504643466,-500.0,0.00024464,2]
[345836748,1734504643475,-500.0,0.00024464,2]
[345836750,1734504643484,-500.0,0.00024464,2]
[345836752,1734504643494,-500.0,0.00024464,2]
[345836755,1734504643504,-500.0,0.00024464,2]
[345836758,1734504643513,-500.0,0.00024464,2]
[345836760,1734504643522,-500.0,0.00024464,2]
[345836762,1734504643533,-255.88129225,0.00024464,2]
[345836764,1734504643542,-500.0,0.00024464,2]
[345836765,1734504643551,-500.0,0.00024464,2]
[345836767,1734504643562,-500.0,0.00024464,2]
[345836769,1734504643571,-500.0,0.00024464,2]
[345836771,1734504643581,-161.11062308,0.00024464,2]
[345836773,1734504643591,-438.69696574,0.00024464,2]
[345836775,1734504643600,-386.71746743,0.00024464,2]
[345836777,1734504643610,-245.6807257,0.00024464,2]
[345836779,1734504643619,-828.29119152,0.00024464,2]
[345836782,1734504643631,-2649.07880848,0.00024464,2]
[345836783,1734504643640,-1150.92119152,0.00024465,2]
[345837053,1734504646286,-7710.81753704,0.00024465,2]
[345837055,1734504646298,-1785.91890364,0.00024465,2]
[345837057,1734504646307,-1698.39730531,0.00024465,2]
[345837059,1734504646319,-18515.38711105,0.00024465,2]
[345837721,1734504684034,237.412946,0.00013973,2]
[345837731,1734505687304,233.822785,0.00013973,2]
[345837870,1734505839963,-380.3954142,0.00020274,2]
[345837872,1734505839976,-591.41,0.00020274,2]
[345837942,1734506597435,5682.66783246,0.0002,2]
[345837943,1734506635996,238.692619,0.00013973,2]
[345838009,1734507032767,-300.0,0.00019999,2]
[345838011,1734507032778,-300.0,0.00019999,2]
[345838013,1734507032788,-438.45630927,0.0002,2]
[345838060,1734507039627,-1968.95740494,0.0002,2]
[345838166,1734507040782,-1192.2580604,0.0002,2]
[345838168,1734507040794,-717.66039293,0.0002,2]
[345838170,1734507040803,-816.3200607,0.0002,2]
[345838473,1734507043748,-1288.66980143,0.0002,2]
[345838474,1734507043760,-884.41437562,0.00020091,2]
[345838475,1734507043770,-238.692619,0.00020447,2]
[345838476,1734507043780,-420.0,0.00021777,2]
[345838477,1734507043789,-420.0,0.00021999,2]
[345838478,1734507043799,-1657.1760797,0.00022222,2]
[345838479,1734507043808,-169.89834,0.00022639,2]
[345838480,1734507043818,-335.735,0.0002325,2]
[345838481,1734507043827,-587.0,0.00023712,2]
[345838482,1734507043836,-301.32271001,0.000239,2]
[345838483,1734507043846,-5000.0,0.00024,2]
[345838484,1734507043855,-5000.0,0.00024,2]
[345838485,1734507043865,-5000.0,0.00024,2]
[345838486,1734507043874,-5000.0,0.00024,2]
[345838488,1734507043883,-151.0,0.00024,7]
[345838490,1734507043893,-151.0,0.00024,7]
[345838492,1734507043903,-151.0,0.00024,7]
[345838494,1734507043912,-247.346881,0.00024,7]
[345838496,1734507043921,-151.0,0.00024,7]
[345838498,1734507043931,-151.0,0.00024,7]
[345838500,1734507043941,-151.0,0.00024,7]
[345838502,1734507043950,-2559.012998,0.00024093,15]
[345838504,1734507043962,-151.0,0.00024093,7]
[345838506,1734507043971,-587.0,0.00024199,2]
[345838508,1734507043980,-301.32270997,0.00024253,2]
[345838510,1734507043990,-151.0,0.00024367,7]
[345838512,1734507043999,-902.6138828,0.00024445,2]
[345838514,1734507044008,-1000.0,0.00024462,2]
[345838516,1734507044018,-202.388358,0.00024464,7]
[345838518,1734507044028,-3332.48,0.00024464,2]
[345838519,1734507044038,-151.0,0.00024464,7]
[345838520,1734507044047,-7230.03497862,0.00024465,2]
[345838661,1734507046599,-151.0,0.00024,7]
[345838663,1734507046609,-151.0,0.00024,7]
[345838665,1734507046620,-151.0,0.00024,7]
[345838667,1734507046630,-151.0,0.00024093,7]
[345838669,1734507046640,-202.17202303,0.00024464,7]
[345838671,1734507046650,-2003.66226985,0.00024465,2]
[345838809,1734507237250,3645.62,0.000255,120]
[345838812,1734507684415,231.384329,0.00013973,2]
[345838814,1734507902585,10000.0,0.0001766,2]
[345838815,1734507919944,10000.0,0.0001766,2]
[345838816,1734508038295,10000.0,0.0001766,2]
[345838817,1734508067817,10000.0,0.0001766,2]
[345838818,1734508089514,10000.0,0.0001766,2]
[345838819,1734508105665,9313.75699029,0.0001766,2]
[345838870,1734508239581,-686.24300971,0.0001766,2]
[345838872,1734508239590,-591.41,0.00019855,2]
[345838874,1734508239600,-231.384329,0.00020447,2]
[345838876,1734508239610,-229.0,0.00022,2]
[345838878,1734508239621,-161.323929,0.00022699,2]
[345838880,1734508239630,-845.2185512,0.00023192,2]
[345838882,1734508239640,-321.861,0.0002325,2]
[345838884,1734508239650,-150.371,0.00023787,2]
[345838886,1734508239660,-291.74614435,0.00024366,2]
[345838888,1734508239669,-313.0,0.000244,11]
[345838890,1734508239679,-300.0,0.00024429,2]
[345838892,1734508239688,-55563.9882009,0.0002443,2]
[345838894,1734508239697,-1000.0,0.00024456,2]
[345838896,1734508239707,-3193.62,0.00024464,2]
[345838898,1734508239716,-5990.55348507,0.00024465,2]
[345838900,1734508239725,-849.19865265,0.00024465,2]
[345838902,1734508239735,-49181.92553746,0.00024465,2]
[345838905,1734508239747,-1100.13685492,0.00024465,2]
[345838907,1734508239759,-31394.5613592,0.00024465,2]
[345838909,1734508239770,-435.79576799,0.00024465,2]
[345838911,1734508239781,-3855.0,0.00024465,2]
[345838914,1734508239801,-1510.8924315,0.00024465,2]
[345839178,1734508242892,55541.70906039,0.000255,120]
[345839588,1734508246821,-20842.0,0.00024465,2]
[345841480,1734508331278,2256.66904231,0.000255,120]
[345841482,1734508653937,224.806869,0.00013973,2]
[345841484,1734509038775,10000.0,0.0001761,2]
[345841485,1734509060279,10000.0,0.0001761,2]
[345841486,1734509088973,10000.0,0.0001761,2]
[345841487,1734509109200,10000.0,0.0001761,2]
[345841488,1734509145488,10000.0,0.0001761,2]
[345841489,1734509165428,10000.0,0.0001761,2]
[345841490,1734509199910,10000.0,0.0001761,2]
[345841491,1734509228501,7931.0,0.0001761,2]
[345841502,1734509405110,3432.0,0.00024,60]
[345841525,1734509432632,-302.15587321,0.0001959,2]
[345841526,1734509432642,-300.0,0.00020446,2]
[345841527,1734509432653,-300.0,0.00020446,2]
[345841528,1734509432663,-224.806869,0.00020447,2]
[345841529,1734509432673,-20869.51026473,0.00020447,4]
[345841530,1734509432685,-500.0,0.00020621,2]
[345841531,1734509432694,-500.0,0.00021707,2]
[345841532,1734509432703,-420.0,0.00022253,2]
[345841533,1734509432713,-420.0,0.00022491,2]
[345841534,1734509432722,-500.0,0.00022792,2]
[345841535,1734509432731,-152.0,0.00022853,2]
[345841536,1734509432741,-169.898339,0.0002319,2]
[345841537,1734509432750,-308.911,0.0002325,2]
[345841538,1734509432759,-24900.0,0.00023352,2]
[345841539,1734509432768,-426.05852378,0.00023462,2]
[345841540,1734509432778,-251.9465209,0.00023562,2]
[345841541,1734509432787,-426.05852375,0.00023876,2]
[345841542,1734509433000,-500.0,0.00023931,2]
[345841543,1734509433010,-8410.20986356,0.00024,2]
[345841544,1734509433020,-587.0,0.0002422,2]
[345841545,1734509433030,-426.05852375,0.0002429,2]
[345841546,1734509433039,-6373.98785204,0.00024359,2]
[345841547,1734509433049,-6373.98785203,0.00024363,2]
[345841548,1734509433058,-151.0,0.00024364,7]
[345841549,1734509433067,-151.0,0.00024364,7]
[345841550,1734509433081,-6373.98785203,0.00024366,2]
[345841551,1734509433091,-151.0,0.00024366,7]